fUST/lending_fUST_20240624
["ID","MTS","AMOUNT","RATE_DAILY","PERIOD"]
[330208717,1719163841376,-500.0,0.00016438,2]
[330208719,1719163841386,-500.0,0.00016438,2]
[330208721,1719163841396,-500.0,0.00016438,2]
[330208723,1719163841406,-213.27489632,0.00016438,2]
[330208725,1719163841418,-500.0,0.00016438,2]
[330208727,1719163841427,-500.0,0.00016438,2]
[330208729,1719163841437,-616.02,0.00016438,2]
[330208731,1719163841447,-500.0,0.00016438,2]
[330208733,1719163841457,-504.2924882,0.00016438,2]
[330208735,1719163841467,-506.46119515,0.00016438,2]
[330208737,1719163841477,-500.0,0.00016438,2]
[330208739,1719163841486,-1421.89,0.00016438,2]
[330208740,1719163841495,-511.02385926,0.00016438,2]
[330208742,1719163841505,-151.0,0.00016438,2]
[330208743,1719163841515,-500.0,0.00016438,2]
[330208745,1719163841524,-151.0,0.00016438,2]
[330208747,1719163841534,-151.0,0.00016438,2]
[330208748,1719163841544,-151.0,0.00016438,2]
[330208749,1719163841554,-151.0,0.00016438,2]
[330208750,1719163841564,-186.870059,0.00016438,2]
[330208751,1719163841574,-500.0,0.00016438,2]
[330208752,1719163841584,-996.77,0.00016438,2]
[330208753,1719163841594,-419.00017148,0.00016438,2]
[330208754,1719163841604,-500.0,0.00016438,2]
[330208755,1719163841614,-151.0,0.00016438,2]
[330208756,1719163841623,-151.0,0.00016438,2]
[330208757,1719163841633,-193.840926,0.00016438,2]
[330208758,1719163841643,-500.0,0.00016438,2]
[330208759,1719163841653,-500.0,0.00016438,2]
[330208760,1719163841665,-500.0,0.00016438,2]
[330208761,1719163841676,-592.03,0.00016438,2]
[330208762,1719163841690,-500.0,0.00016438,2]
[330208763,1719163841699,-500.0,0.00016438,2]
[330208764,1719163841709,-500.0,0.00016438,2]
[330208765,1719163841719,-151.0,0.00016438,2]
[330208766,1719163841729,-151.0,0.00016438,2]
[330208767,1719163841739,-151.0,0.00016438,2]
[330208768,1719163841749,-151.0,0.00016438,2]
[330208769,1719163841759,-151.0,0.00016438,2]
[330208770,1719163841769,-151.0,0.00016438,2]
[330208771,1719163841779,-258.38648,0.00016438,2]
[330208772,1719163841788,-500.0,0.00016438,2]
[330208773,1719163841798,-500.0,0.00016438,2]
[330208774,1719163841808,-500.0,0.00016438,2]
[330208775,1719163841819,-500.0,0.00016438,2]
[330208776,1719163841829,-541.89080139,0.00016438,2]
[330208777,1719163841839,-503.80268777,0.00016438,2]
[330208778,1719163841848,-500.0,0.00016438,2]
[330208779,1719163841858,-500.0,0.00016438,2]
[330208780,1719163841868,-250.0,0.00016438,2]
[330208781,1719163841878,-500.0,0.00016438,2]
[330208782,1719163841887,-151.0,0.00016438,2]
[330208783,1719163841896,-151.0,0.00016438,2]
[330208784,1719163841906,-151.0,0.00016438,2]
[330208785,1719163841918,-289.294637,0.00016438,2]
[330208786,1719163841927,-500.0,0.00016438,2]
[330208787,1719163841937,-540.88,0.00016438,2]
[330208788,1719163841947,-500.0,0.00016438,2]
[330208789,1719163841957,-500.0,0.00016438,2]
[330208790,1719163841966,-500.0,0.00016438,2]
[330208791,1719163841976,-500.0,0.00016438,2]
[330208792,1719163841986,-1051.59975902,0.00016438,2]
[330208793,1719163841995,-495.80305161,0.00016438,2]
[330208794,1719163842005,-500.0,0.00016438,2]
[330208795,1719163842015,-631.98,0.00016438,2]
[330208796,1719163842025,-163.96748775,0.00016438,2]
[330208797,1719163842035,-503.2719716,0.00016438,2]
[330208798,1719163842045,-500.0,0.00016438,2]
[330208799,1719163842055,-503.43406173,0.00016438,2]
[330208800,1719163842064,-500.0,0.00016438,2]
[330208801,1719163842074,-500.0,0.00016438,2]
[330208802,1719163842084,-500.0,0.00016438,2]
[330208803,1719163842094,-500.0,0.00016438,2]
[330208804,1719163842103,-500.0,0.00016438,2]
[330208805,1719163842113,-500.0,0.00016438,2]
[330208806,1719163842123,-500.0,0.00016438,2]
[330208807,1719163842132,-500.0,0.00016438,2]
[330208808,1719163842142,-500.0,0.00016438,2]
[330208809,1719163842152,-500.0,0.00016438,2]
[330208810,1719163842163,-500.0,0.00016438,2]
[330208811,1719163842173,-500.0,0.00016438,2]
[330208812,1719163842183,-500.78087144,0.00016438,2]
[330208813,1719163842193,-500.0,0.00016438,2]
[330208814,1719163842203,-500.0,0.00016438,2]
[330208815,1719163842212,-508.32070103,0.00016438,2]
[330208816,1719163842222,-588.56742673,0.00016438,2]
[330208817,1719163842232,-500.0,0.00016438,2]
[330208818,1719163842242,-495.19231394,0.00016438,2]
[330208819,1719163842252,-287.96239333,0.00016438,2]
[330208820,1719163842262,-500.0,0.00016438,2]
[330208821,1719163842272,-1540.03,0.00016438,2]
[330208822,1719163842281,-500.0,0.00016438,2]
[330208823,1719163842292,-500.0,0.00016438,2]
[330208824,1719163842302,-504.04791039,0.00016438,2]
[330208825,1719163842312,-540.4,0.00016438,2]
[330208826,1719163842321,-500.0,0.00016438,2]
[330208827,1719163842331,-506.21725495,0.00016438,2]
[330208828,1719163842341,-500.0,0.00016438,2]
[330208829,1719163842351,-500.0,0.00016438,2]
[330208830,1719163842361,-841.38,0.00016438,2]
[330208831,1719163842371,-500.0,0.00016438,2]
[330208832,1719163842380,-500.0,0.00016438,2]
[330208833,1719163842390,-500.0,0.00016438,2]
[330208834,1719163842400,-658.51,0.00016438,2]
[330208835,1719163842410,-572.35,0.00016438,2]
[330208836,1719163842421,-500.0,0.00016438,2]
[330208837,1719163842430,-500.0,0.00016438,2]
[330208838,1719163842439,-500.0,0.00016438,2]
[330208839,1719163842449,-500.0,0.00016438,2]
[330208840,1719163842459,-500.0,0.00016438,2]
[330208841,1719163842468,-516.81582886,0.00016438,2]
[330208842,1719163842478,-500.0,0.00016438,2]
[330208843,1719163842488,-985.21,0.00016438,2]
[330208844,1719163842497,-500.0,0.00016438,2]
[330208845,1719163842507,-1488.35441695,0.00016438,2]
[330208846,1719163843173,-3923.20622618,0.00015044,2]
[330208847,1719163843183,-402.58396579,0.00015745,2]
[330208848,1719163843193,-2040.5580749,0.00015784,2]
[330208849,1719163843202,-209.72130719,0.00016005,2]
[330208850,1719163843213,-1487.05343949,0.00016008,2]
[330208851,1719163843223,-30.34558305,0.00016438,2]
[330208852,1719163843232,-515.10349157,0.00016438,2]
[330208853,1719163843242,-652.93,0.00016438,2]
[330208854,1719163843251,-500.0,0.00016438,2]
[330208855,1719163843261,-1602.35,0.00016438,2]
[330208856,1719163843270,-500.0,0.00016438,2]
[330208857,1719163843280,-500.0,0.00016438,2]
[330208858,1719163843289,-602.35,0.00016438,2]
[330208859,1719163843299,-500.0,0.00016438,2]
[330208860,1719163843309,-500.0,0.00016438,2]
[330208861,1719163843319,-500.0,0.00016438,2]
[330208864,1719163843328,-652.25,0.00016438,2]
[330208867,1719163843339,-500.0,0.00016438,2]
[330208869,1719163843348,-607.64,0.00016438,2]
[330208871,1719163843359,-567.32629214,0.00016438,2]
[330208873,1719163843368,-500.0,0.00016438,2]
[330208874,1719163843378,-976.84,0.00016438,2]
[330208875,1719163843388,-500.0,0.00016438,2]
[330208876,1719163843397,-505.18274543,0.00016438,2]
[330208877,1719163843407,-500.0,0.00016438,2]
[330208878,1719163843416,-151.0,0.00016438,2]
[330208879,1719163843425,-151.0,0.00016438,2]
[330208881,1719163843435,-151.0,0.00016438,2]
[330208883,1719163843445,-151.0,0.00016438,2]
[330208886,1719163843454,-151.0,0.00016438,2]
[330208889,1719163843464,-151.0,0.00016438,2]
[330208891,1719163843473,-151.0,0.00016438,2]
[330208893,1719163843483,-500.0,0.00016438,2]
[330208895,1719163843492,-151.0,0.00016438,2]
[330208897,1719163843502,-151.0,0.00016438,2]
[330208900,1719163843512,-151.0,0.00016438,2]
[330208902,1719163843522,-151.0,0.00016438,2]
[330208904,1719163843531,-151.0,0.00016438,2]
[330208906,1719163843541,-151.0,0.00016438,2]
[330208908,1719163843551,-500.0,0.00016438,2]
[330208910,1719163843560,-918.8,0.00016438,2]
[330208914,1719163843570,-552.75884604,0.00016438,2]
[330208916,1719163843580,-151.0,0.00016438,2]
[330208920,1719163843590,-500.0,0.00016438,2]
[330208922,1719163843599,-500.0,0.00016438,2]
[330208925,1719163843610,-151.0,0.00016438,2]
[330208928,1719163843622,-500.0,0.00016438,2]
[330208931,1719163843632,-151.0,0.00016438,2]
[330208934,1719163843641,-151.0,0.00016438,2]
[330208937,1719163843651,-299.09033,0.00016438,2]
[330208940,1719163843661,-500.0,0.00016438,2]
[330208944,1719163843674,-516.14838119,0.00016438,2]
[330208948,1719163843690,-500.0,0.00016438,2]
[330208951,1719163843699,-166.75363836,0.00016438,2]
[330208957,1719163843719,-334.5286824,0.00016438,2]
[330208961,1719163843729,-500.0,0.00016438,2]
[330208965,1719163843740,-512.86676084,0.00016438,2]
[330208969,1719163843749,-500.0,0.00016438,2]
[330208972,1719163843759,-500.0,0.00016438,2]
[330208974,1719163843769,-500.0,0.00016438,2]
[330208976,1719163843780,-500.0,0.00016438,2]
[330208979,1719163843790,-639.67,0.00016438,2]
[330208981,1719163843800,-639.67,0.00016438,2]
[330208983,1719163843809,-639.67,0.00016438,2]
[330208985,1719163843819,-639.67,0.00016438,2]
[330208987,1719163843828,-500.0,0.00016438,2]
[330208989,1719163843838,-766.08,0.00016438,2]
[330208991,1719163843847,-639.67,0.00016438,2]
[330208993,1719163843857,-639.67,0.00016438,2]
[330208995,1719163843867,-639.67,0.00016438,2]
[330208997,1719163843876,-500.0,0.00016438,2]
[330208999,1719163843887,-639.67,0.00016438,2]
[330209001,1719163843897,-639.67,0.00016438,2]
[330209003,1719163843906,-519.31936919,0.00016438,2]
[330209005,1719163843918,-500.0,0.00016438,2]
[330209007,1719163843928,-1123.08,0.00016438,2]
[330209009,1719163843937,-500.0,0.00016438,2]
[330209011,1719163843947,-500.0,0.00016438,2]
[330209013,1719163843956,-356.18067383,0.00016438,2]
[330209015,1719163843966,-508.18832538,0.00016438,2]
[330209017,1719163843976,-500.0,0.00016438,2]
[330209019,1719163843985,-500.0,0.00016438,2]
[330209021,1719163843995,-500.0,0.00016438,2]
[330209023,1719163844004,-500.0,0.00016438,2]
[330209025,1719163844015,-500.0,0.00016438,2]
[330209027,1719163844023,-500.0,0.00016438,2]
[330209029,1719163844033,-500.0,0.00016438,2]
[330209031,1719163844042,-500.0,0.00016438,2]
[330209033,1719163844052,-500.0,0.00016438,2]
[330209035,1719163844061,-500.0,0.00016438,2]
[330209037,1719163844070,-522.30386124,0.00016438,2]
[330209039,1719163844081,-500.0,0.00016438,2]
[330209041,1719163844090,-529.82664877,0.00016438,2]
[330209043,1719163844100,-500.0,0.00016438,2]
[330209045,1719163844110,-500.0,0.00016438,2]
[330209047,1719163844120,-500.0,0.00016438,2]
[330209049,1719163844130,-500.0,0.00016438,2]
[330209051,1719163844140,-500.0,0.00016438,2]
[330209054,1719163844149,-500.0,0.00016438,2]
[330209056,1719163844159,-460.54630208,0.00016438,2]
[330209058,1719163844174,-39.45369792,0.00016438,2]
[330209060,1719163844184,-503.02207733,0.00016438,2]
[330209062,1719163844194,-500.0,0.00016438,2]
[330209064,1719163844204,-157.86818361,0.00016438,2]
[330209066,1719163844213,-500.0,0.00016438,2]
[330209068,1719163844223,-500.0,0.00016438,2]
[330209070,1719163844233,-500.0,0.00016438,2]
[330209072,1719163844243,-736.88,0.00016438,2]
[330209074,1719163844252,-272.62604114,0.00016438,2]
[330209076,1719163844265,-227.37395886,0.00016438,2]
[330209078,1719163844275,-500.0,0.00016438,2]
[330209080,1719163844286,-500.0,0.00016438,2]
[330209082,1719163844296,-500.0,0.00016438,2]
[330209084,1719163844306,-500.0,0.00016438,2]
[330209086,1719163844316,-504.84310457,0.00016438,2]
[330209088,1719163844325,-147.55948657,0.00016438,2]
[330209093,1719163844358,-168.65750536,0.00016438,2]
[330209095,1719163844372,-1959.28187386,0.00016438,2]
[330209097,1719163844386,-55.48113421,0.00016438,2]
[330209099,1719163844396,-500.0,0.00016438,2]
[330209101,1719163844406,-500.0,0.00016438,2]
[330209103,1719163844416,-526.63800917,0.00016438,2]
[330209105,1719163844426,-500.0,0.00016438,2]
[330209107,1719163844436,-500.90414184,0.00016438,2]
[330209109,1719163844446,-641.43436039,0.00016438,2]
[330209111,1719163844456,-528.37725039,0.00016438,2]
[330209113,1719163844466,-590.8,0.00016438,2]
[330209115,1719163844476,-500.0,0.00016438,2]
[330209117,1719163844486,-500.0,0.00016438,2]
[330209119,1719163844496,-1532.17,0.00016438,2]
[330209121,1719163844505,-500.0,0.00016438,2]
[330209123,1719163844516,-236.56107312,0.00016438,2]
[330209125,1719163844526,-500.0,0.00016438,2]
[330209127,1719163844535,-500.0,0.00016438,2]
[330209129,1719163844545,-633.1,0.00016438,2]
[330209131,1719163844556,-151.0,0.00016438,2]
[330209133,1719163844566,-151.0,0.00016438,2]
[330209135,1719163844576,-151.0,0.00016438,2]
[330209137,1719163844585,-151.0,0.00016438,2]
[330209139,1719163844595,-500.0,0.00016438,2]
[330209141,1719163844605,-151.0,0.00016438,2]
[330209143,1719163844615,-500.0,0.00016438,2]
[330209145,1719163844625,-155.213602,0.00016438,2]
[330209147,1719163844634,-500.0,0.00016438,2]
[330209149,1719163844645,-500.0,0.00016438,2]
[330209151,1719163844656,-543.99,0.00016438,2]
[330209153,1719163844666,-681.91,0.00016438,2]
[330209155,1719163844676,-500.65649188,0.00016438,2]
[330209169,1719163844809,-535.43,0.00016438,2]
[330209171,1719163844819,-762.57,0.00016438,2]
[330209173,1719163844829,-24.92066984,0.00016438,2]
[330209176,1719163844844,-475.72103102,0.00016438,2]
[330209178,1719163844855,-500.0,0.00016438,2]
[330209180,1719163844864,-500.65302899,0.00016438,2]
[330209182,1719163844875,-500.0,0.00016438,2]
[330209184,1719163844884,-500.0,0.00016438,2]
[330209186,1719163844894,-1590.05,0.00016438,2]
[330209188,1719163844904,-628.84927997,0.00016438,2]
[330209190,1719163844914,-540.25,0.00016438,2]
[330209192,1719163844924,-500.0,0.00016438,2]
[330209194,1719163844933,-534.98493849,0.00016438,2]
[330209196,1719163844943,-500.0,0.00016438,2]
[330209198,1719163844952,-500.0,0.00016438,2]
[330209200,1719163844962,-500.0,0.00016438,2]
[330209202,1719163844972,-151.0,0.00016438,2]
[330209204,1719163844982,-500.0,0.00016438,2]
[330209206,1719163844992,-151.0,0.00016438,2]
[330209208,1719163845002,-151.0,0.00016438,2]
[330209210,1719163845011,-151.0,0.00016438,2]
[330209212,1719163845021,-151.0,0.00016438,2]
[330209214,1719163845031,-151.0,0.00016438,2]
[330209216,1719163845040,-500.0,0.00016438,2]
[330209218,1719163845050,-500.0,0.00016438,2]
[330209219,1719163845060,-1279.55,0.00016438,2]
[330209220,1719163845070,-500.0,0.00016438,2]
[330209221,1719163845080,-500.0,0.00016438,2]
[330209222,1719163845090,-500.0,0.00016438,2]
[330209223,1719163845099,-507.66495714,0.00016438,2]
[330209224,1719163845109,-281.953781,0.00016438,2]
[330209226,1719163845119,-281.953781,0.00016438,2]
[330209227,1719163845128,-281.953781,0.00016438,2]
[330209228,1719163845138,-500.0,0.00016438,2]
[330209229,1719163845147,-281.953781,0.00016438,2]
[330209230,1719163845157,-281.953781,0.00016438,2]
[330209231,1719163845169,-281.953781,0.00016438,2]
[330209232,1719163845179,-281.953781,0.00016438,2]
[330209233,1719163845188,-666.16,0.00016438,2]
[330209234,1719163845198,-281.953781,0.00016438,2]
[330209235,1719163845207,-281.953781,0.00016438,2]
[330209236,1719163845216,-281.953781,0.00016438,2]
[330209237,1719163845226,-281.953781,0.00016438,2]
[330209238,1719163845235,-281.953781,0.00016438,2]
[330209239,1719163845244,-281.953781,0.00016438,2]
[330209240,1719163845254,-503.94252139,0.00016438,2]
[330209241,1719163845263,-281.953781,0.00016438,2]
[330209242,1719163845272,-510.51420439,0.00016438,2]
[330209243,1719163845282,-281.953781,0.00016438,2]
[330209244,1719163845291,-281.953781,0.00016438,2]
[330209245,1719163845300,-281.953781,0.00016438,2]
[330209246,1719163845309,-281.953787,0.00016438,2]
[330209247,1719163845319,-2245.28,0.00016438,2]
[330209248,1719163845328,-3060.09,0.00016438,2]
[330209249,1719163845338,-512.49941854,0.00016438,2]
[330209250,1719163845347,-553.81806605,0.00016438,2]
[330209251,1719163845356,-503.95038689,0.00016438,2]
[330209252,1719163845365,-1841.57,0.00016438,2]
[330209253,1719163845375,-503.56559268,0.00016438,2]
[330209254,1719163845384,-644.64,0.00016438,2]
[330209255,1719163845394,-518.35962117,0.00016438,2]
[330209256,1719163845403,-503.41750856,0.00016438,2]
[330209257,1719163845412,-751.1,0.00016438,2]
[330209258,1719163845422,-425.91702072,0.00016438,2]
[330209259,1719163845431,-1747.08,0.00016438,2]
[330209260,1719163845441,-500.0,0.00016438,2]
[330209261,1719163845451,-500.0,0.00016438,2]
[330209262,1719163845460,-500.0,0.00016438,2]
[330209263,1719163845469,-500.0,0.00016438,2]
[330209264,1719163845478,-500.0,0.00016438,2]
[330209265,1719163845488,-533.15144958,0.00016438,2]
[330209266,1719163845497,-500.0,0.00016438,2]
[330209267,1719163845506,-755.44,0.00016438,2]
[330209268,1719163845516,-501.85105644,0.00016438,2]
[330209269,1719163845527,-500.0,0.00016438,2]
[330209270,1719163845536,-997.43,0.00016438,2]
[330209271,1719163845545,-761.28,0.00016438,2]
[330209272,1719163845555,-500.0,0.00016438,2]
[330209273,1719163845564,-500.0,0.00016438,2]
[330209274,1719163845573,-500.0,0.00016438,2]
[330209275,1719163845583,-500.0,0.00016438,2]
[330209276,1719163845592,-522.27659159,0.00016438,2]
[330209277,1719163845601,-658.22,0.00016438,2]
[330209278,1719163845611,-500.0,0.00016438,2]
[330209279,1719163845621,-511.94870478,0.00016438,2]
[330209280,1719163845630,-455.95751458,0.00016438,2]
[330209281,1719163845639,-500.0,0.00016438,2]
[330209282,1719163845648,-485.01504,0.00016438,2]
[330209283,1719163845658,-485.01504,0.00016438,2]
[330209284,1719163845668,-485.01504,0.00016438,2]
[330209285,1719163845678,-485.01504,0.00016438,2]
[330209286,1719163845693,-485.01504,0.00016438,2]
[330209287,1719163845703,-201.66399446,0.00016438,2]
[330209288,1719163845712,-485.01504,0.00016438,2]
[330209289,1719163845721,-485.01504,0.00016438,2]
[330209290,1719163845732,-485.01504,0.00016438,2]
[330209291,1719163845741,-150.17037263,0.00016438,2]
[330209292,1719163846202,-491.17849993,0.00016235,2]
[330209293,1719163846212,-148.12492182,0.00016438,2]
[330209294,1719163846224,-186.71974555,0.00016438,2]
[330209295,1719163846234,-485.01504,0.00016438,2]
[330209296,1719163846243,-9.28437111,0.00016438,2]
[330209297,1719163846255,-475.73066889,0.00016438,2]
[330209298,1719163846265,-485.01504,0.00016438,2]
[330209299,1719163846274,-454.24457524,0.00016438,2]
[330209315,1719164068704,782.797669,0.00013874,2]
[330209316,1719164151637,188.82288385,0.00013874,2]
[330209317,1719164165513,309.73865265,0.00013874,2]
[330209318,1719164359602,167.4837934,0.00013776,2]
[330209319,1719164397685,233.0732411,0.00013776,2]
[330209321,1719164522826,24900.0,0.00013794,2]
[330209323,1719164632463,391.398835,0.00013861,2]
[330209373,1719165032182,-307.6785805,0.00014142,2]
[330209375,1719165032192,-3000.0,0.00014262,2]
[330209377,1719165032201,-926.42760485,0.00014553,2]
[330209379,1719165032211,-10560.92625688,0.00014641,2]
[330209381,1719165032220,-300.0,0.00014642,2]
[330209383,1719165032229,-190.58341641,0.00014747,2]
[330209385,1719165032238,-1818.5697735,0.00015,2]
[330209387,1719165032248,-177.63352355,0.00015,2]
[330209389,1719165032257,-318.0264791,0.00015214,2]
[330209391,1719165032266,-239.52424691,0.00015439,2]
[330209393,1719165032276,-4013.12608629,0.0001549,2]
[330209395,1719165032286,-1117.60475758,0.0001564,2]
[330209397,1719165032295,-4013.12608629,0.00015641,2]
[330209399,1719165032304,-4013.12608629,0.00015791,2]
[330209401,1719165032313,-759.05605941,0.00015811,2]
[330209403,1719165032322,-11117.37808337,0.00015883,2]
[330209405,1719165032331,-6971.98727304,0.00015911,2]
[330209406,1719165032340,-38186.86276096,0.00015912,2]
[330209409,1719165032349,-154.86836189,0.00015934,2]
[330209411,1719165032359,-175.97073239,0.00015941,2]
[330209413,1719165032367,-175.97073239,0.00015941,2]
[330209415,1719165032377,-527.87878285,0.00015941,2]
[330209417,1719165032386,-4013.12608629,0.00015942,2]
[330209418,1719165032395,-4013.12608629,0.00016092,2]
[330209420,1719165032404,-420.0,0.00016106,2]
[330209422,1719165032414,-5277.56392113,0.00016324,2]
[330209424,1719165032425,-2000.0,0.00016338,2]
[330209426,1719165032434,-240.5471,0.00016356,2]
[330209428,1719165032444,-4252.81561096,0.00016397,2]
[330209430,1719165032453,-990.49460368,0.000164,2]
[330209432,1719165032462,-500.0,0.00016438,2]
[330209434,1719165032471,-155.05277752,0.00016438,2]
[330209436,1719165032481,-287.05696465,0.00016438,2]
[330209438,1719165032490,-181.58035626,0.00016438,2]
[330209439,1719165032499,-500.0,0.00016438,2]
[330209441,1719165032508,-729.56,0.00016438,2]
[330209442,1719165032517,-553.32170708,0.00016438,2]
[330209444,1719165032527,-630.79,0.00016438,2]
[330209446,1719165032537,-521.90859201,0.00016438,2]
[330209448,1719165032547,-535.69,0.00016438,2]
[330209449,1719165032556,-500.0,0.00016438,2]
[330209451,1719165032565,-505.17024834,0.00016438,2]
[330209452,1719165032575,-622.928059,0.00016438,2]
[330209454,1719165032584,-622.928059,0.00016438,2]
[330209456,1719165032594,-622.928059,0.00016438,2]
[330209457,1719165032603,-622.928059,0.00016438,2]
[330209459,1719165032612,-622.928059,0.00016438,2]
[330209461,1719165032622,-622.928059,0.00016438,2]
[330209462,1719165032631,-622.928059,0.00016438,2]
[330209464,1719165032639,-622.928059,0.00016438,2]
[330209466,1719165032648,-622.928059,0.00016438,2]
[330209467,1719165032658,-622.928059,0.00016438,2]
[330209469,1719165032667,-622.928059,0.00016438,2]
[330209471,1719165032677,-622.928059,0.00016438,2]
[330209472,1719165032686,-622.928059,0.00016438,2]
[330209474,1719165032696,-622.928059,0.00016438,2]
[330209476,1719165032706,-622.928059,0.00016438,2]
[330209478,1719165032715,-622.928059,0.00016438,2]
[330209479,1719165032724,-622.928059,0.00016438,2]
[330209481,1719165032733,-622.928059,0.00016438,2]
[330209483,1719165032742,-622.928059,0.00016438,2]
[330209484,1719165032751,-622.928054,0.00016438,2]
[330209486,1719165032762,-500.0,0.00016438,2]
[330209488,1719165032771,-500.0,0.00016438,2]
[330209489,1719165032779,-500.0,0.00016438,2]
[330209491,1719165032789,-500.12321415,0.00016438,2]
[330209493,1719165032798,-500.0,0.00016438,2]
[330209495,1719165032808,-500.0,0.00016438,2]
[330209496,1719165032818,-509.28427672,0.00016438,2]
[330209498,1719165032827,-500.0,0.00016438,2]
[330209500,1719165032836,-500.0,0.00016438,2]
[330209502,1719165032846,-500.0,0.00016438,2]
[330209503,1719165032855,-500.0,0.00016438,2]
[330209505,1719165032864,-500.0,0.00016438,2]
[330209507,1719165032873,-881.07,0.00016438,2]
[330209508,1719165032882,-500.0,0.00016438,2]
[330209510,1719165032891,-500.0,0.00016438,2]
[330209512,1719165032900,-500.0,0.00016438,2]
[330209514,1719165032909,-500.0,0.00016438,2]
[330209515,1719165032919,-500.0,0.00016438,2]
[330209517,1719165032929,-1163.48,0.00016438,2]
[330209519,1719165032938,-500.0,0.00016438,2]
[330209521,1719165032947,-522.25901947,0.00016438,2]
[330209523,1719165032957,-521.33,0.00016438,2]
[330209524,1719165032966,-566.19,0.00016438,2]
[330209526,1719165032975,-500.0,0.00016438,2]
[330209528,1719165032984,-500.0,0.00016438,2]
[330209530,1719165032994,-500.0,0.00016438,2]
[330209531,1719165033003,-500.0,0.00016438,2]
[330209533,1719165033012,-500.0,0.00016438,2]
[330209535,1719165033022,-500.0,0.00016438,2]
[330209537,1719165033032,-500.0,0.00016438,2]
[330209538,1719165033041,-500.0,0.00016438,2]
[330209540,1719165033050,-500.0,0.00016438,2]
[330209542,1719165033060,-500.0,0.00016438,2]
[330209544,1719165033069,-500.0,0.00016438,2]
[330209545,1719165033078,-500.0,0.00016438,2]
[330209547,1719165033087,-500.0,0.00016438,2]
[330209549,1719165033097,-500.0,0.00016438,2]
[330209551,1719165033112,-500.0,0.00016438,2]
[330209553,1719165033121,-500.0,0.00016438,2]
[330209554,1719165033130,-500.0,0.00016438,2]
[330209556,1719165033139,-505.73901521,0.00016438,2]
[330209558,1719165033149,-500.0,0.00016438,2]
[330209560,1719165033159,-500.0,0.00016438,2]
[330209561,1719165033168,-500.0,0.00016438,2]
[330209563,1719165033183,-500.0,0.00016438,2]
[330209565,1719165033192,-500.0,0.00016438,2]
[330209567,1719165033200,-500.0,0.00016438,2]
[330209568,1719165033210,-151.0,0.00016438,2]
[330209570,1719165033219,-151.0,0.00016438,2]
[330209572,1719165033228,-151.0,0.00016438,2]
[330209574,1719165033238,-151.0,0.00016438,2]
[330209575,1719165033247,-249.998442,0.00016438,2]
[330209577,1719165033258,-500.0,0.00016438,2]
[330209579,1719165033268,-500.0,0.00016438,2]
[330209581,1719165033278,-500.0,0.00016438,2]
[330209582,1719165033287,-509.95585927,0.00016438,2]
[330209584,1719165033296,-500.0,0.00016438,2]
[330209586,1719165033305,-506.45551196,0.00016438,2]
[330209588,1719165033315,-549.36,0.00016438,2]
[330209590,1719165033324,-466.98824719,0.00016438,2]
[330209591,1719165033334,-2151.73,0.00016438,2]
[330209593,1719165033343,-925.69,0.00016438,2]
[330209595,1719165033352,-500.0,0.00016438,2]